Workbook

Sheet TableB Demo
A2: Use the 'Provider' and 'Measure' boxes on the right to filter either on Provider or Measures that plans responded to with data when applicable.
A7: Provider_Measure_SubMeasure | B7: Reported_Rate | C7: Upper_Confidence_Interval | D7: Lower_Confidence_Interval
A8: Blue Cross Blue Shield
A9: Adolescent Immunization
A10: Combo 1 | B10: 0.6472019465 | C10: 0.694639528 | D10: 0.599764365
A11: Meningococcal | B11: 0.6569343066 | C11: 0.7040713189 | D11: 0.6097972942
A12: Tdap/Td | B12: 0.7104622871 | C12: 0.7555500577 | D12: 0.6653745165
A13: Adolescent Well Care Visits
A14: Adolescent Well Care Visits | B14: 0.4573569644 | C14: 0.4680711536 | D14: 0.4466427752
A15: Annual Dental Visits
A16: adv 11-14 Year Olds | B16: 0 | C16: 0 | D16: 0
A17: adv 15-18 Year Olds | B17: 0 | C17: 0 | D17: 0
A18: adv 19-20 Year Olds | B18: 0 | C18: 0 | D18: 0
A19: adv 2-3 Year olds | B19: 0 | C19: 0 | D19: 0
A20: adv 4-6 Year Olds | B20: 0 | C20: 0 | D20: 0
A21: adv 7-10 Year Olds | B21: 0 | C21: 0 | D21: 0
A22: adv Combined | B22: 0 | C22: 0 | D22: 0
A23: Antidepression Medication Management
A24: Effective Acute Phase Treatment | B24: 0.6386861314 | C24: 0.6721513915 | D24: 0.6052208713
A25: Effective Continuation Phase Treatment | B25: 0.49756691 | C25: 0.5323736423 | D25: 0.4627601777
A26: Asthma Medication Ratio
A27: 12-18 Years Old | B27: 0.6666666667 | C27: 0.7540842363 | D27: 0.5792490971
A28: 19-50 Years Old | B28: 0.7272727273 | C28: 0.7744893575 | D28: 0.680056097
A29: 5-11 Years Old | B29: 0.8235294118 | C29: 0.8962609512 | D29: 0.7507978723
A30: 51-64 Years Old | B30: 0.8051948052 | C30: 0.8584594783 | D30: 0.7519301321
A31: Combined Rate | B31: 0.7535885167 | C31: 0.7834127834 | D31: 0.7237642501
A32: Beta Blocker Treatment After Heart Attack
A33: Beta Blocker Treatment After Heart Attack | B33: 0.8571428571 | C33: 0.9874187339 | D33: 0.7268669804
A34: Breast Cancer Screening
A35: Breast Cancer Screening | B35: 0.7549464513 | C35: 0.766401174 | D35: 0.7434917285
A36: Cervical Cancer Screening
A37: Cervical Cancer Screening | B37: 0 | C37: 0 | D37: 0
A38: Childhood Immunizations
A39: Combo 10 | B39: 0.6458333333 | C39: 0.6949957867 | D39: 0.59667088
A40: Combo 2 | B40: 0.8098958333 | C40: 0.8504644338 | D40: 0.7693272329
A41: Combo 3 | B41: 0.8072916667 | C41: 0.8480646895 | D41: 0.7665186438
A42: Combo 4 | B42: 0.8020833333 | C42: 0.8432569476 | D42: 0.7609097191
A43: Combo 5 | B43: 0.7734375 | C43: 0.8166303789 | D43: 0.7302446211
A44: Combo 6 | B44: 0.6666666667 | C44: 0.7151430782 | D44: 0.6181902551
A45: Combo 7 | B45: 0.7682291667 | C45: 0.8117579136 | D45: 0.7247004197
A46: Combo 8 | B46: 0.6666666667 | C46: 0.7151430782 | D46: 0.6181902551
A47: Combo 9 | B47: 0.6458333333 | C47: 0.6949957867 | D47: 0.59667088
A48: DTaP | B48: 0.8567708333 | C48: 0.8931287303 | D48: 0.8204129364
A49: Hepatitis A | B49: 0.9088541667 | C49: 0.9389585714 | D49: 0.8787497619
A50: Hepatitis B | B50: 0.9114583333 | C50: 0.9411889358 | D50: 0.8817277308
A51: Hib | B51: 0.9088541667 | C51: 0.9389585714 | D51: 0.8787497619
A52: Influenza | B52: 0.7213541667 | C52: 0.7675217519 | D52: 0.6751865814
A53: IPV | B53: 0.9296875 | C53: 0.9565752506 | D53: 0.9027997494
A54: MMR | B54: 0.921875 | C54: 0.9500331877 | D54: 0.8937168123
A55: Pneumococcal Conjugate | B55: 0.8854166667 | C55: 0.9185934829 | D55: 0.8522398505
A56: Rotavirus | B56: 0.8802083333 | C56: 0.9140055275 | D56: 0.8464111391
A57: VZV | B57: 0.9166666667 | C57: 0.9456271516 | D57: 0.8877061818
A58: Chlamydia Screening in Women
A59: Chlamydia Screening in Women | B59: 1.220418052 | C59: 1.298594578 | D59: 1.142241527
A60: Comprehensive Diabetes Care
A61: BP control <140/90 | B61: 0.6149635036 | C61: 0.6566386116 | D61: 0.5732883957
A62: Eye Exam | B62: 0.503649635 | C62: 0.5464458122 | D62: 0.4608534579
A63: HbA1c Control (<7.0%) | B63: 0.4906976744 | C63: 0.5391361899 | D63: 0.442259159
A64: HbA1c Control (<8.0%) | B64: 0.6605839416 | C64: 0.7011622687 | D64: 0.6200056145
A65: HbA1c Test | B65: 0.9233576642 | C65: 0.9465547662 | D65: 0.9001605623
A66: Kidney disease | B66: 0.897810219 | C66: 0.9240962997 | D66: 0.8715241383
A67: Poor HbA1c Poor Control (>9.0%) | B67: 0.246350365 | C67: 0.2833579084 | D67: 0.2093428216
A68: Controlling Blood Pressure
A69: Controlling Blood Pressure | B69: 0.5586034913 | C69: 0.6084767247 | D69: 0.5087302579
A70: CIGNA
A71: Adolescent Immunization
A72: Combo 1 | B72: 0.7142857143 | C72: 0.8415962495 | D72: 0.586975179
A73: Combo 2 | B73: 0.1607142857 | C73: 0.2658851003 | D73: 0.0555434711
A74: HPV | B74: 0.1607142857 | C74: 0.2658851003 | D74: 0.0555434711
A75: Meningococcal | B75: 0.7142857143 | C75: 0.8415962495 | D75: 0.586975179
A76: Tdap | B76: 0.7857142857 | C76: 0.9021686155 | D76: 0.6692599559
A77: Adolescent Well Care Visits
A78: Adolescent Well Care Visits | B78: 0.4863731656 | C78: 0.5322987187 | D78: 0.4404476125
A79: Antidepression Medication Management
A80: Effective Acute Phase Treatment | B80: 0.6774193548 | C80: 0.858191929 | D80: 0.4966467807
A81: Effective Continuation Phase Treatment | B81: 0.4838709677 | C81: 0.6760113499 | D81: 0.2917305856
A82: Asthma Medication Ratio
A83: 12-18 Years: Medication Compliance 50% | B83: 0.6666666667 | C83: 1 | D83: 0.3029696894
A84: 12-18 Years: Medication Compliance 75% | B84: 0.6666666667 | C84: 1 | D84: 0.3029696894
A85: 19-50 Years: Medication Compliance 50% | B85: 1 | C85: 1 | D85: 0.9583333333
A86: 19-50 Years: Medication Compliance 75% | B86: 1 | C86: 1 | D86: 0.9583333333
A87: 5-11 Years: Medication Compliance 50% | B87: 0.6666666667 | C87: 1 | D87: 0.2059387074
A88: 5-11 Years: Medication Compliance 75% | B88: 0.6666666667 | C88: 1 | D88: 0.2059387074
A89: 51-64 Years: Medication Compliance 50% | B89: 0.8888888889 | C89: 1 | D89: 0.6279057188
A90: 51-64 Years: Medication Compliance 75% | B90: 0.8888888889 | C90: 1 | D90: 0.6279057188
A91: Total: Medication Compliance 50% | B91: 0.8333333333 | C91: 0.969025814 | D91: 0.6976408527
A92: Total: Medication Compliance 75% | B92: 0.8333333333 | C92: 0.969025814 | D92: 0.6976408527
A93: Breast Cancer Screening
A94: Breast Cancer Screening | B94: 0.6953125 | C94: 0.7536780733 | D94: 0.6369469267
A95: Cervical Cancer Screening
A96: Cervical Cancer Screening | B96: 0.7041742287 | C96: 0.74321106 | D96: 0.6651373974
A97: Childhood Immunizations
A98: Combination #3 | B98: 0.4642857143 | C98: 0.6669666389 | D98: 0.2616047896
A99: Combination #4 | B99: 0.4285714286 | C99: 0.6298251212 | D99: 0.227317736
A100: Combination #5 | B100: 0.4642857143 | C100: 0.6669666389 | D100: 0.2616047896
A101: Combination #6 | B101: 0.3928571429 | C101: 0.5917071071 | D101: 0.1940071787
A102: Combination #7 | B102: 0.4285714286 | C102: 0.6298251212 | D102: 0.227317736
A103: Combination #8 | B103: 0.3571428571 | C103: 0.5525729457 | D103: 0.1617127686
A104: Combination #9 | B104: 0.3928571429 | C104: 0.5917071071 | D104: 0.1940071787
A105: Combo 10 | B105: 0.3571428571 | C105: 0.5525729457 | D105: 0.1617127686
A106: Combo 2 | B106: 0.4642857143 | C106: 0.6669666389 | D106: 0.2616047896
A107: DTaP | B107: 0.7142857143 | C107: 0.8995602359 | D107: 0.5290111926
A108: Hepatitis A | B108: 0.9285714286 | C108: 1 | D108: 0.8152716952
A109: Hepatitis B | B109: 0.4642857143 | C109: 0.6669666389 | D109: 0.2616047896
A110: Hib | B110: 0.7142857143 | C110: 0.8995602359 | D110: 0.5290111926
A111: Influenza | B111: 0.75 | C111: 0.9283291239 | D111: 0.5716708761
A112: IPV | B112: 0.7142857143 | C112: 0.8995602359 | D112: 0.5290111926
A113: MMR | B113: 1 | C113: 1 | D113: 0.9821428571
A114: Pneumococcal Conjugate | B114: 0.6785714286 | C114: 0.8695052698 | D114: 0.4876375874
A115: Rotavirus | B115: 0.7142857143 | C115: 0.8995602359 | D115: 0.5290111926
A116: VZV | B116: 0.9642857143 | C116: 1 | D116: 0.8776548653
A117: Chlamydia Screening in Women
A118: 16-20 Years | B118: 0.3269230769 | C118: 0.4641033228 | D118: 0.189742831
A119: 21-24 Years | B119: 0.5185185185 | C119: 0.6611153808 | D119: 0.3759216563
A120: Total | B120: 0.4245283019 | C120: 0.5233887028 | D120: 0.325667901
A121: Comprehensive Diabetes Care
A122: Blood Pressure Control (<140/90 mm Hg) | B122: 0.01910828025 | C122: 0.04371938843 | D122: 0
A123: Eye Exam (Retinal) Performed | B123: 0.3949044586 | C123: 0.4745934573 | D123: 0.3152154599
A124: HbA1c Control (<7.0%) | B124: 0 | C124: 0 | D124: 0
A125: HbA1c Control (<8.0%) | B125: 0.2420382166 | C125: 0.3122566612 | D125: 0.1718197719
A126: HbA1c Poor Control (>9.0%) | B126: 0.7133757962 | C126: 0.7873295624 | D126: 0.6394220299
A127: Hemoglobin A1c (HbA1c) Testing | B127: 0.8662420382 | C127: 0.9226997592 | D127: 0.8097843172
A128: Medical Attention for Nephropathy | B128: 0.8662420382 | C128: 0.9226997592 | D128: 0.8097843172
A129: HOME STATE CENTRAL
A130: Adolescent Immunization
A131: Combo 1 | B131: 0.4282238443 | C131: 0.4773039634 | D131: 0.3791437251
A132: Combo 2 | B132: 0.1484184915 | C132: 0.1840235815 | D132: 0.1128134015
A133: HPV | B133: 0.1557177616 | C133: 0.1920070376 | D133: 0.1194284855
A134: Meningococcal | B134: 0.4501216545 | C134: 0.499461449 | D134: 0.4007818601
A135: Tdap/Td | B135: 0.4574209246 | C135: 0.5068262813 | D135: 0.4080155679
A136: Adolescent Well Care Visits
A137: Adolescent Well Care Visits | B137: 0.4306569343 | C137: 0.4797706018 | D137: 0.3815432668
A138: Annual Dental Visits
A139: adv 11-14 Year Olds | B139: 0.4498567335 | C139: 0.4714143853 | D139: 0.4282990818
A140: adv 15-18 Year Olds | B140: 0.3694267516 | C140: 0.3924915322 | D140: 0.346361971
A141: adv 19-20 Year Olds | B141: 0.2625 | C141: 0.3652168875 | D141: 0.1597831125
A142: adv 2-3 Year olds | B142: 0.2583293095 | C142: 0.2774324002 | D142: 0.2392262189
A143: adv 4-6 Year Olds | B143: 0.4488851493 | C143: 0.469101103 | D143: 0.4286691957
A144: adv 7-10 Year Olds | B144: 0.4803149606 | C144: 0.4999517053 | D144: 0.4606782159
A145: adv Combined | B145: 0.4061897328 | C145: 0.4154650177 | D145: 0.3969144478
A146: Antidepression Medication Management
A147: Effective Acute Phase Treatment | B147: 0.4497607656 | C147: 0.5196324788 | D147: 0.3798890523
A148: Effective Continuation Phase Treatment | B148: 0.3062200957 | C148: 0.3711343381 | D148: 0.2413058533
A149: Asthma Medication Ratio
A150: 12-18 Years Old | B150: 0.5901639344 | C150: 0.7218427811 | D150: 0.4584850878
A151: 19-50 Years Old | B151: 0.4230769231 | C151: 0.6323102923 | D151: 0.2138435539
A152: 5-11 Years Old | B152: 0.7142857143 | C152: 0.8088761082 | D152: 0.6196953203
A153: 51-64 Years Old | B153: 0 | C153: 0 | D153: 0
A154: Combined Rate | B154: 0.6324324324 | C154: 0.7046483522 | D154: 0.5602165126
A155: Beta Blocker Treatment After Heart Attack
A156: Beta Blocker Treatment After Heart Attack | B156: 0.6666666667 | C156: 1 | D156: 0
A157: Breast Cancer Screening
A158: Breast Cancer Screening | B158: 0.3333333333 | C158: 0.7940612926 | D158: 0
A159: Cervical Cancer Screening
A160: Cervical Cancer Screening | B160: 0.5523114355 | C160: 0.6016270529 | D160: 0.5029958181
A161: Childhood Immunizations
A162: Combo 10 | B162: 0.2189781022 | C162: 0.2601972852 | D162: 0.1777589192
A163: Combo 2 | B163: 0.5352798054 | C163: 0.5847403033 | D163: 0.4858193074
A164: Combo 3 | B164: 0.5109489051 | C164: 0.5605183513 | D164: 0.4613794589
A165: Combo 4 | B165: 0.4841849148 | C165: 0.5337417585 | D165: 0.4346280711
A166: Combo 5 | B166: 0.4209245742 | C166: 0.4698969485 | D166: 0.3719521999
A167: Combo 6 | B167: 0.2871046229 | C167: 0.3320824134 | D167: 0.2421268323
A168: Combo 7 | B168: 0.403892944 | C168: 0.4525721352 | D168: 0.3552137529
A169: Combo 8 | B169: 0.2749391727 | C169: 0.3193436304 | D169: 0.2305347151
A170: Combo 9 | B170: 0.2287104623 | C170: 0.2705534146 | D170: 0.1868675099
A171: DTaP | B171: 0.600973236 | C171: 0.6495578043 | D171: 0.5523886677
A172: Hepatitis A | B172: 0.7396593674 | C172: 0.7833225743 | D172: 0.6959961605
A173: Hepatitis B | B173: 0.7883211679 | C173: 0.8290513487 | D173: 0.7475909871
A174: Hib | B174: 0.7372262774 | C174: 0.781017175 | D174: 0.6934353797
A175: Influenza | B175: 0.3892944039 | C175: 0.4376750664 | D175: 0.3409137414
A176: IPV | B176: 0.7250608273 | C176: 0.7694652849 | D176: 0.6806563696
A177: MMR | B177: 0.7688564477 | C177: 0.8108504559 | D177: 0.7268624394
A178: Pneumococcal Conjugate | B178: 0.6423357664 | C178: 0.6899157344 | D178: 0.5947557985
A179: Rotavirus | B179: 0.5888077859 | C179: 0.6376198312 | D179: 0.5399957406
A180: VZV | B180: 0.7737226277 | C180: 0.8154125919 | D180: 0.7320326635
A181: Chlamydia Screening in Women
A182: 16-20 years old | B182: 0.3801020408 | C182: 0.4294553707 | D182: 0.3307487109
A183: 21-24 years old | B183: 0.5294117647 | C183: 0.5905985986 | D183: 0.4682249308
A184: Combined Rate | B184: 0.4412650602 | C184: 0.4798054052 | D184: 0.4027247153
A185: Comprehensive Diabetes Care
A186: BP control <140/80 | B186: 0.6086956522 | C186: 0.7139098873 | D186: 0.5034814171
A187: Eye Exam | B187: 0.5217391304 | C187: 0.6293014386 | D187: 0.4141768223
A188: HbA1c Control (<7.0%) | B188: 0 | C188: 0 | D188: 0
A189: HbA1c Control (<8.0%) | B189: 0.4239130435 | C189: 0.5303814873 | D189: 0.3174445997
A190: HbA1c Test | B190: 0.7282608696 | C190: 0.8246457684 | D190: 0.6318759707
A191: Kidney disease | B191: 0.7826086957 | C191: 0.8723725071 | D191: 0.6928448842
A192: Poor HbA1c Poor Control (>9.0%) | B192: 0.4891304348 | C192: 0.596765251 | D192: 0.3814956186
A193: Controlling Blood Pressure
A194: Controlling Blood Pressure | B194: 0.5 | C194: 0.5989782861 | D194: 0.4010217139
A195: HOME STATE EAST
A196: Adolescent Immunization
A197: Combo 1 | B197: 0.5060827251 | C197: 0.5556601893 | D197: 0.4565052608
A198: Combo 2 | B198: 0.199513382 | C198: 0.2393861783 | D198: 0.1596405857
A199: HPV | B199: 0.2214111922 | C199: 0.2627892947 | D199: 0.1800330898
A200: Meningococcal | B200: 0.5279805353 | C200: 0.5774857891 | D200: 0.4784752815
A201: Tdap/Td | B201: 0.5523114355 | C201: 0.6016270529 | D201: 0.5029958181
A202: Adolescent Well Care Visits
A203: Adolescent Well Care Visits | B203: 0.4768856448 | C203: 0.5264149807 | D203: 0.4273563088
A204: Annual Dental Visits
A205: adv 11-14 Year Olds | B205: 0.4630923451 | C205: 0.4752190979 | D205: 0.4509655922
... 397 more rows

Sheet TableB Data (hidden)
A1: Provider | B1: Measure | C1: SubMeasure | D1: Numerator | E1: Denominator | F1: Reported Rate | G1: Upper Confidence Interval | H1: Lower Confidence Interval
A2: Blue Cross Blue Shield | B2: Annual Dental Visits | C2: adv 2-3 Year olds | D2: N/A | E2: N/A | F2: =IFERROR(D2/E2,"N/A") -> N/A | G2: =IFERROR(IF($F2+1.961*SQRT(($F2*(1-$F2))/$E2)+(1/(2*$E2))>1,1,$F2+1.961*SQRT(($F2*(1-$F2))/$E2)+(1/(2*$E2))),"N/A") -> N/A | H2: =IFERROR(IF($F2-1.961*SQRT(($F2*(1-$F2))/$E2)-(1/(2*$E2))<0,0,$F2-1.961*SQRT(($F2*(1-$F2))/$E2)-(1/(2*$E2))),"N/A") -> N/A
A3: Blue Cross Blue Shield | B3: Annual Dental Visits | C3: adv 4-6 Year Olds | D3: N/A | E3: N/A | F3: =IFERROR(D3/E3,"N/A") -> N/A | G3: N/A | H3: N/A
A4: Blue Cross Blue Shield | B4: Annual Dental Visits | C4: adv 7-10 Year Olds | D4: N/A | E4: N/A | F4: N/A | G4: N/A | H4: N/A
A5: Blue Cross Blue Shield | B5: Annual Dental Visits | C5: adv 11-14 Year Olds | D5: N/A | E5: N/A | F5: N/A | G5: N/A | H5: N/A
A6: Blue Cross Blue Shield | B6: Annual Dental Visits | C6: adv 15-18 Year Olds | D6: N/A | E6: N/A | F6: N/A | G6: N/A | H6: N/A
A7: Blue Cross Blue Shield | B7: Annual Dental Visits | C7: adv 19-20 Year Olds | D7: N/A | E7: N/A | F7: N/A | G7: N/A | H7: N/A
A8: Blue Cross Blue Shield | B8: Annual Dental Visits | C8: adv Combined | D8: N/A | E8: N/A | F8: N/A | G8: N/A | H8: N/A
A9: Blue Cross Blue Shield | B9: Adolescent Immunization | C9: Meningococcal | D9: 270 | E9: 411 | F9: 0.6569343066 | G9: 0.7040713189 | H9: 0.6097972942
A10: Blue Cross Blue Shield | B10: Adolescent Immunization | C10: Tdap/Td | D10: 292 | E10: 411 | F10: 0.7104622871 | G10: 0.7555500577 | H10: 0.6653745165
A11: Blue Cross Blue Shield | B11: Adolescent Immunization | C11: Combo 1 | D11: 266 | E11: 411 | F11: 0.6472019465 | G11: 0.694639528 | H11: 0.599764365
A12: Blue Cross Blue Shield | B12: Adolescent Well Care Visits | C12: Adolescent Well Care Visits | D12: 3845 | E12: 8407 | F12: 0.4573569644 | G12: 0.4680711536 | H12: 0.4466427752
A13: Blue Cross Blue Shield | B13: Breast Cancer Screening | C13: Breast Cancer Screening | D13: 4159 | E13: 5509 | F13: 0.7549464513 | G13: 0.766401174 | H13: 0.7434917285
A14: Blue Cross Blue Shield | B14: Cervical Cancer Screening | C14: Cervical Cancer Screening | D14: N/A | E14: N/A | F14: N/A | G14: N/A | H14: N/A
A15: Blue Cross Blue Shield | B15: Comprehensive Diabetes Care | C15: HbA1c Test | D15: 506 | E15: 548 | F15: 0.9233576642 | G15: 0.9465547662 | H15: 0.9001605623
A16: Blue Cross Blue Shield | B16: Comprehensive Diabetes Care | C16: Poor HbA1c Poor Control (>9.0%) | D16: 135 | E16: 548 | F16: 0.246350365 | G16: 0.2833579084 | H16: 0.2093428216
A17: Blue Cross Blue Shield | B17: Comprehensive Diabetes Care | C17: HbA1c Control (<8.0%) | D17: 362 | E17: 548 | F17: 0.6605839416 | G17: 0.7011622687 | H17: 0.6200056145
A18: Blue Cross Blue Shield | B18: Comprehensive Diabetes Care | C18: HbA1c Control (<7.0%) | D18: 211 | E18: 430 | F18: 0.4906976744 | G18: 0.5391361899 | H18: 0.442259159
A19: Blue Cross Blue Shield | B19: Comprehensive Diabetes Care | C19: Eye Exam | D19: 276 | E19: 548 | F19: 0.503649635 | G19: 0.5464458122 | H19: 0.4608534579
A20: Blue Cross Blue Shield | B20: Comprehensive Diabetes Care | C20: Kidney disease | D20: 492 | E20: 548 | F20: 0.897810219 | G20: 0.9240962997 | H20: 0.8715241383
A21: Blue Cross Blue Shield | B21: Comprehensive Diabetes Care | C21: BP control <140/90 | D21: 337 | E21: 548 | F21: 0.6149635036 | G21: 0.6566386116 | H21: 0.5732883957
A22: Blue Cross Blue Shield | B22: Childhood Immunizations | C22: DTaP | D22: 329 | E22: 384 | F22: 0.8567708333 | G22: 0.8931287303 | H22: 0.8204129364
A23: Blue Cross Blue Shield | B23: Childhood Immunizations | C23: IPV | D23: 357 | E23: 384 | F23: 0.9296875 | G23: 0.9565752506 | H23: 0.9027997494
A24: Blue Cross Blue Shield | B24: Childhood Immunizations | C24: MMR | D24: 354 | E24: 384 | F24: 0.921875 | G24: 0.9500331877 | H24: 0.8937168123
A25: Blue Cross Blue Shield | B25: Childhood Immunizations | C25: Hib | D25: 349 | E25: 384 | F25: 0.9088541667 | G25: 0.9389585714 | H25: 0.8787497619
A26: Blue Cross Blue Shield | B26: Childhood Immunizations | C26: Hepatitis B | D26: 350 | E26: 384 | F26: 0.9114583333 | G26: 0.9411889358 | H26: 0.8817277308
A27: Blue Cross Blue Shield | B27: Childhood Immunizations | C27: VZV | D27: 352 | E27: 384 | F27: 0.9166666667 | G27: 0.9456271516 | H27: 0.8877061818
A28: Blue Cross Blue Shield | B28: Childhood Immunizations | C28: Pneumococcal Conjugate | D28: 340 | E28: 384 | F28: 0.8854166667 | G28: 0.9185934829 | H28: 0.8522398505
A29: Blue Cross Blue Shield | B29: Childhood Immunizations | C29: Hepatitis A | D29: 349 | E29: 384 | F29: 0.9088541667 | G29: 0.9389585714 | H29: 0.8787497619
A30: Blue Cross Blue Shield | B30: Childhood Immunizations | C30: Rotavirus | D30: 338 | E30: 384 | F30: 0.8802083333 | G30: 0.9140055275 | H30: 0.8464111391
A31: Blue Cross Blue Shield | B31: Childhood Immunizations | C31: Influenza | D31: 277 | E31: 384 | F31: 0.7213541667 | G31: 0.7675217519 | H31: 0.6751865814
A32: Blue Cross Blue Shield | B32: Childhood Immunizations | C32: Combo 2 | D32: 311 | E32: 384 | F32: 0.8098958333 | G32: 0.8504644338 | H32: 0.7693272329
A33: Blue Cross Blue Shield | B33: Childhood Immunizations | C33: Combo 3 | D33: 310 | E33: 384 | F33: 0.8072916667 | G33: 0.8480646895 | H33: 0.7665186438
A34: Blue Cross Blue Shield | B34: Childhood Immunizations | C34: Combo 4 | D34: 308 | E34: 384 | F34: 0.8020833333 | G34: 0.8432569476 | H34: 0.7609097191
A35: Blue Cross Blue Shield | B35: Childhood Immunizations | C35: Combo 5 | D35: 297 | E35: 384 | F35: 0.7734375 | G35: 0.8166303789 | H35: 0.7302446211
A36: Blue Cross Blue Shield | B36: Childhood Immunizations | C36: Combo 6 | D36: 256 | E36: 384 | F36: 0.6666666667 | G36: 0.7151430782 | H36: 0.6181902551
A37: Blue Cross Blue Shield | B37: Childhood Immunizations | C37: Combo 7 | D37: 295 | E37: 384 | F37: 0.7682291667 | G37: 0.8117579136 | H37: 0.7247004197
A38: Blue Cross Blue Shield | B38: Childhood Immunizations | C38: Combo 8 | D38: 256 | E38: 384 | F38: 0.6666666667 | G38: 0.7151430782 | H38: 0.6181902551
A39: Blue Cross Blue Shield | B39: Childhood Immunizations | C39: Combo 9 | D39: 248 | E39: 384 | F39: 0.6458333333 | G39: 0.6949957867 | H39: 0.59667088
A40: Blue Cross Blue Shield | B40: Childhood Immunizations | C40: Combo 10 | D40: 248 | E40: 384 | F40: 0.6458333333 | G40: 0.6949957867 | H40: 0.59667088
A41: Blue Cross Blue Shield | B41: Chlamydia Screening in Women | C41: Chlamydia Screening in Women | D41: 429 | E41: 1184 | F41: 0.3623310811 | G41: 0.3901471709 | H41: 0.3345149913
A42: Blue Cross Blue Shield | B42: Chlamydia Screening in Women | C42: Chlamydia Screening in Women | D42: 495 | E42: 1094 | F42: 0.4524680073 | G42: 0.4824349378 | H42: 0.4225010768
A43: Blue Cross Blue Shield | B43: Chlamydia Screening in Women | C43: Chlamydia Screening in Women | D43: 924 | E43: 2278 | F43: 0.405618964 | G43: 0.4260124694 | H43: 0.3852254586
A44: Blue Cross Blue Shield | B44: Controlling Blood Pressure | C44: Controlling Blood Pressure | D44: 224 | E44: 401 | F44: 0.5586034913 | G44: 0.6084767247 | H44: 0.5087302579
A45: Blue Cross Blue Shield | B45: Beta Blocker Treatment After Heart Attack | C45: Beta Blocker Treatment After Heart Attack | D45: 30 | E45: 35 | F45: 0.8571428571 | G45: 0.9874187339 | H45: 0.7268669804
A46: Blue Cross Blue Shield | B46: Antidepression Medication Management | C46: Effective Acute Phase Treatment | D46: 525 | E46: 822 | F46: 0.6386861314 | G46: 0.6721513915 | H46: 0.6052208713
A47: Blue Cross Blue Shield | B47: Antidepression Medication Management | C47: Effective Continuation Phase Treatment | D47: 409 | E47: 822 | F47: 0.49756691 | G47: 0.5323736423 | H47: 0.4627601777
A48: Blue Cross Blue Shield | B48: Asthma Medication Ratio | C48: 5-11 Years Old | D48: 98 | E48: 119 | F48: 0.8235294118 | G48: 0.8962609512 | H48: 0.7507978723
A49: Blue Cross Blue Shield | B49: Asthma Medication Ratio | C49: 12-18 Years Old | D49: 82 | E49: 123 | F49: 0.6666666667 | G49: 0.7540842363 | H49: 0.5792490971
A50: Blue Cross Blue Shield | B50: Asthma Medication Ratio | C50: 19-50 Years Old | D50: 264 | E50: 363 | F50: 0.7272727273 | G50: 0.7744893575 | H50: 0.680056097
A51: Blue Cross Blue Shield | B51: Asthma Medication Ratio | C51: 51-64 Years Old | D51: 186 | E51: 231 | F51: 0.8051948052 | G51: 0.8584594783 | H51: 0.7519301321
A52: Blue Cross Blue Shield | B52: Asthma Medication Ratio | C52: Combined Rate | D52: 630 | E52: 836 | F52: 0.7535885167 | G52: 0.7834127834 | H52: 0.7237642501
A53: UHC | B53: Annual Dental Visits | C53: adv 2-3 Year olds | D53: Supressed - Low Denominator | E53: Supressed - Low Denominator | F53: =IFERROR(D53/E53,"N/A") -> N/A | G53: N/A | H53: N/A
A54: UHC | B54: Annual Dental Visits | C54: adv 4-6 Year Olds | D54: Supressed - Low Denominator | E54: Supressed - Low Denominator | F54: =IFERROR(D54/E54,"N/A") -> N/A | G54: N/A | H54: N/A
A55: UHC | B55: Annual Dental Visits | C55: adv 7-10 Year Olds | D55: Supressed - Low Denominator | E55: Supressed - Low Denominator | F55: N/A | G55: N/A | H55: N/A
A56: UHC | B56: Annual Dental Visits | C56: adv 11-14 Year Olds | D56: Supressed - Low Denominator | E56: Supressed - Low Denominator | F56: N/A | G56: N/A | H56: N/A
A57: UHC | B57: Annual Dental Visits | C57: adv 15-18 Year Olds | D57: Supressed - Low Denominator | E57: Supressed - Low Denominator | F57: N/A | G57: N/A | H57: N/A
A58: UHC | B58: Annual Dental Visits | C58: adv 19-20 Year Olds | D58: Supressed - Low Denominator | E58: Supressed - Low Denominator | F58: N/A | G58: N/A | H58: N/A
A59: UHC | B59: Annual Dental Visits | C59: adv Combined | D59: Supressed - Low Denominator | E59: Supressed - Low Denominator | F59: N/A | G59: N/A | H59: N/A
A60: UHC | B60: Adolescent Immunization | C60: Meningococcal | D60: Supressed - Low Denominator | E60: Supressed - Low Denominator | F60: N/A | G60: N/A | H60: N/A
A61: UHC | B61: Adolescent Immunization | C61: Tdap/Td | D61: Supressed - Low Denominator | E61: Supressed - Low Denominator | F61: N/A | G61: N/A | H61: N/A
A62: UHC | B62: Adolescent Immunization | C62: Combo 1 | D62: Supressed - Low Denominator | E62: Supressed - Low Denominator | F62: N/A | G62: N/A | H62: N/A
A63: UHC | B63: Adolescent Well Care Visits | C63: Adolescent Well Care Visits | D63: Supressed - Low Denominator | E63: Supressed - Low Denominator | F63: N/A | G63: N/A | H63: N/A
A64: UHC | B64: Breast Cancer Screening | C64: Breast Cancer Screening | D64: Supressed - Low Denominator | E64: Supressed - Low Denominator | F64: N/A | G64: N/A | H64: N/A
A65: UHC | B65: Cervical Cancer Screening | C65: Cervical Cancer Screening | D65: Supressed - Low Denominator | E65: Supressed - Low Denominator | F65: N/A | G65: N/A | H65: N/A
A66: UHC | B66: Comprehensive Diabetes Care | C66: HbA1c Test | D66: Supressed - Low Denominator | E66: Supressed - Low Denominator | F66: N/A | G66: =IFERROR(IF($F66+1.961*SQRT(($F66*(1-$F66))/$E66)+(1/(2*$E66))>1,1,$F66+1.961*SQRT(($F66*(1-$F66))/$E66)+(1/(2*$E66))),"N/A") -> N/A | H66: =IFERROR(IF($F66-1.961*SQRT(($F66*(1-$F66))/$E66)-(1/(2*$E66))<0,0,$F66-1.961*SQRT(($F66*(1-$F66))/$E66)-(1/(2*$E66))),"N/A") -> N/A
A67: UHC | B67: Comprehensive Diabetes Care | C67: Poor HbA1c Poor Control (>9.0%) | D67: Supressed - Low Denominator | E67: Supressed - Low Denominator | F67: N/A | G67: N/A | H67: N/A
A68: UHC | B68: Comprehensive Diabetes Care | C68: HbA1c Control (<8.0%) | D68: Supressed - Low Denominator | E68: Supressed - Low Denominator | F68: N/A | G68: N/A | H68: N/A
A69: UHC | B69: Comprehensive Diabetes Care | C69: HbA1c Control (<7.0%) | D69: Supressed - Low Denominator | E69: Supressed - Low Denominator | F69: N/A | G69: N/A | H69: N/A
A70: UHC | B70: Comprehensive Diabetes Care | C70: Eye Exam | D70: Supressed - Low Denominator | E70: Supressed - Low Denominator | F70: N/A | G70: N/A | H70: N/A
A71: UHC | B71: Comprehensive Diabetes Care | C71: Kidney disease | D71: Supressed - Low Denominator | E71: Supressed - Low Denominator | F71: N/A | G71: N/A | H71: N/A
A72: UHC | B72: Comprehensive Diabetes Care | C72: BP control <140/90 | D72: Supressed - Low Denominator | E72: Supressed - Low Denominator | F72: N/A | G72: N/A | H72: N/A
A73: UHC | B73: Childhood Immunizations | C73: DTaP | D73: Supressed - Low Denominator | E73: Supressed - Low Denominator | F73: N/A | G73: N/A | H73: N/A
A74: UHC | B74: Childhood Immunizations | C74: IPV | D74: Supressed - Low Denominator | E74: Supressed - Low Denominator | F74: N/A | G74: N/A | H74: N/A
A75: UHC | B75: Childhood Immunizations | C75: MMR | D75: Supressed - Low Denominator | E75: Supressed - Low Denominator | F75: N/A | G75: N/A | H75: N/A
A76: UHC | B76: Childhood Immunizations | C76: Hib | D76: Supressed - Low Denominator | E76: Supressed - Low Denominator | F76: N/A | G76: N/A | H76: N/A
A77: UHC | B77: Childhood Immunizations | C77: Hepatitis B | D77: Supressed - Low Denominator | E77: Supressed - Low Denominator | F77: N/A | G77: N/A | H77: N/A
A78: UHC | B78: Childhood Immunizations | C78: VZV | D78: Supressed - Low Denominator | E78: Supressed - Low Denominator | F78: N/A | G78: N/A | H78: N/A
A79: UHC | B79: Childhood Immunizations | C79: Pneumococcal Conjugate | D79: Supressed - Low Denominator | E79: Supressed - Low Denominator | F79: N/A | G79: N/A | H79: N/A
A80: UHC | B80: Childhood Immunizations | C80: Hepatitis A | D80: Supressed - Low Denominator | E80: Supressed - Low Denominator | F80: N/A | G80: N/A | H80: N/A
A81: UHC | B81: Childhood Immunizations | C81: Rotavirus | D81: Supressed - Low Denominator | E81: Supressed - Low Denominator | F81: N/A | G81: N/A | H81: N/A
A82: UHC | B82: Childhood Immunizations | C82: Influenza | D82: Supressed - Low Denominator | E82: Supressed - Low Denominator | F82: N/A | G82: N/A | H82: N/A
A83: UHC | B83: Childhood Immunizations | C83: Combo 2 | D83: Supressed - Low Denominator | E83: Supressed - Low Denominator | F83: N/A | G83: N/A | H83: N/A
A84: UHC | B84: Childhood Immunizations | C84: Combo 3 | D84: Supressed - Low Denominator | E84: Supressed - Low Denominator | F84: N/A | G84: N/A | H84: N/A
A85: UHC | B85: Childhood Immunizations | C85: Combo 4 | D85: Supressed - Low Denominator | E85: Supressed - Low Denominator | F85: N/A | G85: N/A | H85: N/A
A86: UHC | B86: Childhood Immunizations | C86: Combo 5 | D86: Supressed - Low Denominator | E86: Supressed - Low Denominator | F86: N/A | G86: N/A | H86: N/A
A87: UHC | B87: Childhood Immunizations | C87: Combo 6 | D87: Supressed - Low Denominator | E87: Supressed - Low Denominator | F87: N/A | G87: N/A | H87: N/A
A88: UHC | B88: Childhood Immunizations | C88: Combo 7 | D88: Supressed - Low Denominator | E88: Supressed - Low Denominator | F88: N/A | G88: N/A | H88: N/A
A89: UHC | B89: Childhood Immunizations | C89: Combo 8 | D89: Supressed - Low Denominator | E89: Supressed - Low Denominator | F89: N/A | G89: N/A | H89: N/A
A90: UHC | B90: Childhood Immunizations | C90: Combo 9 | D90: Supressed - Low Denominator | E90: Supressed - Low Denominator | F90: N/A | G90: N/A | H90: N/A
A91: UHC | B91: Childhood Immunizations | C91: Combo 10 | D91: Supressed - Low Denominator | E91: Supressed - Low Denominator | F91: N/A | G91: N/A | H91: N/A
A92: UHC | B92: Chlamydia Screening in Women | C92: Chlamydia Screening in Women | D92: Supressed - Low Denominator | E92: Supressed - Low Denominator | F92: N/A | G92: N/A | H92: N/A
A93: UHC | B93: Chlamydia Screening in Women | C93: Chlamydia Screening in Women | D93: Supressed - Low Denominator | E93: Supressed - Low Denominator | F93: N/A | G93: N/A | H93: N/A
A94: UHC | B94: Chlamydia Screening in Women | C94: Chlamydia Screening in Women | D94: Supressed - Low Denominator | E94: Supressed - Low Denominator | F94: N/A | G94: N/A | H94: N/A
A95: UHC | B95: Controlling Blood Pressure | C95: Controlling Blood Pressure | D95: Supressed - Low Denominator | E95: Supressed - Low Denominator | F95: N/A | G95: N/A | H95: N/A
A96: UHC | B96: Beta Blocker Treatment After Heart Attack | C96: Beta Blocker Treatment After Heart Attack | D96: Supressed - Low Denominator | E96: Supressed - Low Denominator | F96: N/A | G96: N/A | H96: N/A
A97: UHC | B97: Antidepression Medication Management | C97: Effective Acute Phase Treatment | D97: Supressed - Low Denominator | E97: Supressed - Low Denominator | F97: N/A | G97: N/A | H97: N/A
A98: UHC | B98: Antidepression Medication Management | C98: Effective Continuation Phase Treatment | D98: Supressed - Low Denominator | E98: Supressed - Low Denominator | F98: N/A | G98: N/A | H98: N/A
A99: UHC | B99: Asthma Medication Ratio | C99: 5-11 Years Old | D99: Supressed - Low Denominator | E99: Supressed - Low Denominator | F99: N/A | G99: N/A | H99: N/A
A100: UHC | B100: Asthma Medication Ratio | C100: 12-18 Years Old | D100: Supressed - Low Denominator | E100: Supressed - Low Denominator | F100: N/A | G100: N/A | H100: N/A
A101: UHC | B101: Asthma Medication Ratio | C101: 19-50 Years Old | D101: Supressed - Low Denominator | E101: Supressed - Low Denominator | F101: N/A | G101: N/A | H101: N/A
A102: UHC | B102: Asthma Medication Ratio | C102: 51-64 Years Old | D102: Supressed - Low Denominator | E102: Supressed - Low Denominator | F102: N/A | G102: N/A | H102: N/A
A103: UHC | B103: Asthma Medication Ratio | C103: Combined Rate | D103: Supressed - Low Denominator | E103: Supressed - Low Denominator | F103: N/A | G103: N/A | H103: N/A
A104: CIGNA | B104: Childhood Immunizations | C104: DTaP | D104: 20 | E104: 28 | F104: =IFERROR(D104/E104,"N/A") -> 0.7142857143 | G104: =IFERROR(IF($F104+1.961*SQRT(($F104*(1-$F104))/$E104)+(1/(2*$E104))>1,1,$F104+1.961*SQRT(($F104*(1-$F104))/$E104)+(1/(2*$E104))),"N/A") -> 0.8995602359 | H104: =IFERROR(IF($F104-1.961*SQRT(($F104*(1-$F104))/$E104)-(1/(2*$E104))<0,0,$F104-1.961*SQRT(($F104*(1-$F104))/$E104)-(1/(2*$E104))),"N/A") -> 0.5290111926
A105: CIGNA | B105: Childhood Immunizations | C105: IPV | D105: 20 | E105: 28 | F105: =IFERROR(D105/E105,"N/A") -> 0.7142857143 | G105: =IFERROR(IF($F105+1.961*SQRT(($F105*(1-$F105))/$E105)+(1/(2*$E105))>1,1,$F105+1.961*SQRT(($F105*(1-$F105))/$E105)+(1/(2*$E105))),"N/A") -> 0.8995602359 | H105: =IFERROR(IF($F105-1.961*SQRT(($F105*(1-$F105))/$E105)-(1/(2*$E105))<0,0,$F105-1.961*SQRT(($F105*(1-$F105))/$E105)-(1/(2*$E105))),"N/A") -> 0.5290111926
A106: CIGNA | B106: Childhood Immunizations | C106: MMR | D106: 28 | E106: 28 | F106: 1 | G106: 1 | H106: 0.9821428571
A107: CIGNA | B107: Childhood Immunizations | C107: HiB | D107: 20 | E107: 28 | F107: 0.7142857143 | G107: 0.8995602359 | H107: 0.5290111926
A108: CIGNA | B108: Childhood Immunizations | C108: Hepatitis B | D108: 13 | E108: 28 | F108: 0.4642857143 | G108: 0.6669666389 | H108: 0.2616047896
A109: CIGNA | B109: Childhood Immunizations | C109: VZV | D109: 27 | E109: 28 | F109: 0.9642857143 | G109: 1 | H109: 0.8776548653
A110: CIGNA | B110: Childhood Immunizations | C110: Pneumococcal Conjugate | D110: 19 | E110: 28 | F110: 0.6785714286 | G110: 0.8695052698 | H110: 0.4876375874
A111: CIGNA | B111: Childhood Immunizations | C111: Hepatitis A | D111: 26 | E111: 28 | F111: 0.9285714286 | G111: 1 | H111: 0.8152716952
A112: CIGNA | B112: Childhood Immunizations | C112: Rotavirus | D112: 20 | E112: 28 | F112: 0.7142857143 | G112: 0.8995602359 | H112: 0.5290111926
A113: CIGNA | B113: Childhood Immunizations | C113: Influenza | D113: 21 | E113: 28 | F113: 0.75 | G113: 0.9283291239 | H113: 0.5716708761
A114: CIGNA | B114: Childhood Immunizations | C114: Combo 2 | D114: 13 | E114: 28 | F114: 0.4642857143 | G114: 0.6669666389 | H114: 0.2616047896
A115: CIGNA | B115: Childhood Immunizations | C115: Combination #3 | D115: 13 | E115: 28 | F115: 0.4642857143 | G115: 0.6669666389 | H115: 0.2616047896
A116: CIGNA | B116: Childhood Immunizations | C116: Combination #4 | D116: 12 | E116: 28 | F116: 0.4285714286 | G116: 0.6298251212 | H116: 0.227317736
A117: CIGNA | B117: Childhood Immunizations | C117: Combination #5 | D117: 13 | E117: 28 | F117: 0.4642857143 | G117: 0.6669666389 | H117: 0.2616047896
A118: CIGNA | B118: Childhood Immunizations | C118: Combination #6 | D118: 11 | E118: 28 | F118: 0.3928571429 | G118: 0.5917071071 | H118: 0.1940071787
A119: CIGNA | B119: Childhood Immunizations | C119: Combination #7 | D119: 12 | E119: 28 | F119: 0.4285714286 | G119: 0.6298251212 | H119: 0.227317736
A120: CIGNA | B120: Childhood Immunizations | C120: Combination #8 | D120: 10 | E120: 28 | F120: 0.3571428571 | G120: 0.5525729457 | H120: 0.1617127686
A121: CIGNA | B121: Childhood Immunizations | C121: Combination #9 | D121: 11 | E121: 28 | F121: 0.3928571429 | G121: 0.5917071071 | H121: 0.1940071787
A122: CIGNA | B122: Childhood Immunizations | C122: Combo 10 | D122: 10 | E122: 28 | F122: 0.3571428571 | G122: 0.5525729457 | H122: 0.1617127686
A123: CIGNA | B123: Adolescent Immunization | C123: Meningococcal | D123: 40 | E123: 56 | F123: 0.7142857143 | G123: 0.8415962495 | H123: 0.586975179
A124: CIGNA | B124: Adolescent Immunization | C124: Tdap | D124: 44 | E124: 56 | F124: 0.7857142857 | G124: 0.9021686155 | H124: 0.6692599559
A125: CIGNA | B125: Adolescent Immunization | C125: HPV | D125: 9 | E125: 56 | F125: 0.1607142857 | G125: 0.2658851003 | H125: 0.0555434711
A126: CIGNA | B126: Adolescent Immunization | C126: Combo 1 | D126: 40 | E126: 56 | F126: 0.7142857143 | G126: 0.8415962495 | H126: 0.586975179
A127: CIGNA | B127: Adolescent Immunization | C127: Combo 2 | D127: 9 | E127: 56 | F127: 0.1607142857 | G127: 0.2658851003 | H127: 0.0555434711
A128: CIGNA | B128: Breast Cancer Screening | C128: Breast Cancer Screening | D128: 178 | E128: 256 | F128: 0.6953125 | G128: 0.7536780733 | H128: 0.6369469267
A129: CIGNA | B129: Cervical Cancer Screening | C129: Cervical Cancer Screening | D129: 388 | E129: 551 | F129: 0.7041742287 | G129: 0.74321106 | H129: 0.6651373974
A130: CIGNA | B130: Chlamydia Screening in Women | C130: 16-20 Years | D130: 17 | E130: 52 | F130: 0.3269230769 | G130: 0.4641033228 | H130: 0.189742831
A131: CIGNA | B131: Chlamydia Screening in Women | C131: 21-24 Years | D131: 28 | E131: 54 | F131: 0.5185185185 | G131: 0.6611153808 | H131: 0.3759216563
A132: CIGNA | B132: Chlamydia Screening in Women | C132: Total | D132: 45 | E132: 106 | F132: 0.4245283019 | G132: 0.5233887028 | H132: 0.325667901
A133: CIGNA | B133: Asthma Medication Ratio | C133: 5-11 Years: Medication Compliance 50% | D133: 4 | E133: 6 | F133: 0.6666666667 | G133: 1 | H133: 0.2059387074
A134: CIGNA | B134: Asthma Medication Ratio | C134: 5-11 Years: Medication Compliance 75% | D134: 4 | E134: 6 | F134: 0.6666666667 | G134: 1 | H134: 0.2059387074
A135: CIGNA | B135: Asthma Medication Ratio | C135: 12-18 Years: Medication Compliance 50% | D135: 6 | E135: 9 | F135: 0.6666666667 | G135: 1 | H135: 0.3029696894
A136: CIGNA | B136: Asthma Medication Ratio | C136: 12-18 Years: Medication Compliance 75% | D136: 6 | E136: 9 | F136: 0.6666666667 | G136: 1 | H136: 0.3029696894
A137: CIGNA | B137: Asthma Medication Ratio | C137: 19-50 Years: Medication Compliance 50% | D137: 12 | E137: 12 | F137: 1 | G137: 1 | H137: 0.9583333333
A138: CIGNA | B138: Asthma Medication Ratio | C138: 19-50 Years: Medication Compliance 75% | D138: 12 | E138: 12 | F138: 1 | G138: 1 | H138: 0.9583333333
A139: CIGNA | B139: Asthma Medication Ratio | C139: 51-64 Years: Medication Compliance 50% | D139: 8 | E139: 9 | F139: 0.8888888889 | G139: 1 | H139: 0.6279057188
A140: CIGNA | B140: Asthma Medication Ratio | C140: 51-64 Years: Medication Compliance 75% | D140: 8 | E140: 9 | F140: 0.8888888889 | G140: 1 | H140: 0.6279057188
A141: CIGNA | B141: Asthma Medication Ratio | C141: Total: Medication Compliance 50% | D141: 30 | E141: 36 | F141: 0.8333333333 | G141: 0.969025814 | H141: 0.6976408527
A142: CIGNA | B142: Asthma Medication Ratio | C142: Total: Medication Compliance 75% | D142: 30 | E142: 36 | F142: 0.8333333333 | G142: 0.969025814 | H142: 0.6976408527
A143: CIGNA | B143: Comprehensive Diabetes Care | C143: Hemoglobin A1c (HbA1c) Testing | D143: 136 | E143: 157 | F143: 0.8662420382 | G143: 0.9226997592 | H143: 0.8097843172
A144: CIGNA | B144: Comprehensive Diabetes Care | C144: HbA1c Poor Control (>9.0%) | D144: 112 | E144: 157 | F144: 0.7133757962 | G144: 0.7873295624 | H144: 0.6394220299
A145: CIGNA | B145: Comprehensive Diabetes Care | C145: HbA1c Control (<8.0%) | D145: 38 | E145: 157 | F145: 0.2420382166 | G145: 0.3122566612 | H145: 0.1718197719
A146: CIGNA | B146: Comprehensive Diabetes Care | C146: HbA1c Control (<7.0%) | D146: N/R | E146: 157 | F146: N/A | G146: N/A | H146: N/A
A147: CIGNA | B147: Comprehensive Diabetes Care | C147: Eye Exam (Retinal) Performed | D147: 62 | E147: 157 | F147: 0.3949044586 | G147: 0.4745934573 | H147: 0.3152154599
A148: CIGNA | B148: Comprehensive Diabetes Care | C148: Medical Attention for Nephropathy | D148: 136 | E148: 157 | F148: 0.8662420382 | G148: 0.9226997592 | H148: 0.8097843172
A149: CIGNA | B149: Comprehensive Diabetes Care | C149: Blood Pressure Control (<140/90 mm Hg) | D149: 3 | E149: 157 | F149: 0.01910828025 | G149: 0.04371938843 | H149: 0
A150: CIGNA | B150: Antidepression Medication Management | C150: Effective Acute Phase Treatment | D150: 21 | E150: 31 | F150: 0.6774193548 | G150: 0.858191929 | H150: 0.4966467807
A151: CIGNA | B151: Antidepression Medication Management | C151: Effective Continuation Phase Treatment | D151: 15 | E151: 31 | F151: 0.4838709677 | G151: 0.6760113499 | H151: 0.2917305856
A152: CIGNA | B152: Adolescent Well Care Visits | C152: Adolescent Well Care Visits | D152: 232 | E152: 477 | F152: 0.4863731656 | G152: 0.5322987187 | H152: 0.4404476125
A153: HOME STATE EAST | B153: Annual Dental Visits | C153: adv 2-3 Year olds | D153: 1358 | E153: 5515 | F153: =IFERROR(D153/E153,"N/A") -> 0.246237534 | G153: 0.2577044481 | H153: 0.2347706199
A154: HOME STATE EAST | B154: Annual Dental Visits | C154: adv 4-6 Year Olds | D154: 3194 | E154: 6596 | F154: 0.4842328684 | G154: 0.4963754474 | H154: 0.4720902894
A155: HOME STATE EAST | B155: Annual Dental Visits | C155: adv 7-10 Year Olds | D155: 4194 | E155: 7781 | F155: 0.5390052692 | G155: 0.5501511769 | H155: 0.5278593616
A156: HOME STATE EAST | B156: Annual Dental Visits | C156: adv 11-14 Year Olds | D156: 3049 | E156: 6584 | F156: 0.4630923451 | G156: 0.4752190979 | H156: 0.4509655922
A157: HOME STATE EAST | B157: Annual Dental Visits | C157: adv 15-18 Year Olds | D157: 1875 | E157: 5361 | F157: 0.3497481813 | G157: 0.3626138681 | H157: 0.3368824946
A158: HOME STATE EAST | B158: Annual Dental Visits | C158: adv 19-20 Year Olds | D158: 35 | E158: 139 | F158: 0.2517985612 | G158: 0.3275905113 | H158: 0.176006611
A159: HOME STATE EAST | B159: Annual Dental Visits | C159: adv Combined | D159: 13705 | E159: 31,976 | F159: 0.428602702 | G159: 0.4340453668 | H159: 0.4231600372
A160: HOME STATE EAST | B160: Adolescent Immunization | C160: Meningococcal | D160: 217 | E160: 411 | F160: 0.5279805353 | G160: 0.5774857891 | H160: 0.4784752815
A161: HOME STATE EAST | B161: Adolescent Immunization | C161: Tdap/Td | D161: 227 | E161: 411 | F161: 0.5523114355 | G161: 0.6016270529 | H161: 0.5029958181
A162: HOME STATE EAST | B162: Adolescent Immunization | C162: HPV | D162: 91 | E162: 411 | F162: =IFERROR(D162/E162,"N/A") -> 0.2214111922 | G162: 0.2627892947 | H162: 0.1800330898
A163: HOME STATE EAST | B163: Adolescent Immunization | C163: Combo 1 | D163: 208 | E163: 411 | F163: 0.5060827251 | G163: 0.5556601893 | H163: 0.4565052608
A164: HOME STATE EAST | B164: Adolescent Immunization | C164: Combo 2 | D164: 82 | E164: 411 | F164: 0.199513382 | G164: 0.2393861783 | H164: 0.1596405857
A165: HOME STATE EAST | B165: Adolescent Well Care Visits | C165: Adolescent Well Care Visits | D165: 196 | E165: 411 | F165: 0.4768856448 | G165: 0.5264149807 | H165: 0.4273563088
A166: HOME STATE EAST | B166: Breast Cancer Screening | C166: Breast Cancer Screening | D166: 24 | E166: 62 | F166: 0.3870967742 | G166: 0.5164687417 | H166: 0.2577248067
A167: HOME STATE EAST | B167: Cervical Cancer Screening | C167: Cervical Cancer Screening | D167: 238 | E167: 411 | F167: 0.5790754258 | G167: 0.6280478001 | H167: 0.5301030515
A168: HOME STATE EAST | B168: Comprehensive Diabetes Care | C168: HbA1c Test | D168: 212 | E168: 261 | F168: 0.8122605364 | G168: 0.8615767321 | H168: 0.7629443406
A169: HOME STATE EAST | B169: Comprehensive Diabetes Care | C169: Poor HbA1c Poor Control (>9.0%) | D169: 133 | E169: 261 | F169: 0.5095785441 | G169: 0.5721745415 | H169: 0.4469825466
A170: HOME STATE EAST | B170: Comprehensive Diabetes Care | C170: HbA1c Control (<8.0%) | D170: 101 | E170: 261 | F170: 0.3869731801 | G170: 0.4480093089 | H170: 0.3259370512
A171: HOME STATE EAST | B171: Comprehensive Diabetes Care | C171: HbA1c Control (<7.0%) | D171: - | E171: - | F171: N/A | G171: =IFERROR(IF($F171+1.961*SQRT(($F171*(1-$F171))/$E171)+(1/(2*$E171))>1,1,$F171+1.961*SQRT(($F171*(1-$F171))/$E171)+(1/(2*$E171))),"N/A") -> N/A | H171: =IFERROR(IF($F171-1.961*SQRT(($F171*(1-$F171))/$E171)-(1/(2*$E171))<0,0,$F171-1.961*SQRT(($F171*(1-$F171))/$E171)-(1/(2*$E171))),"N/A") -> N/A
A172: HOME STATE EAST | B172: Comprehensive Diabetes Care | C172: Eye Exam | D172: 119 | E172: 261 | F172: 0.4559386973 | G172: 0.5183097207 | H172: 0.3935676739
A173: HOME STATE EAST | B173: Comprehensive Diabetes Care | C173: Kidney disease | D173: 229 | E173: 261 | F173: 0.877394636 | G173: 0.9191219385 | H173: 0.8356673335
A174: HOME STATE EAST | B174: Comprehensive Diabetes Care | C174: BP control <140/80 | D174: 152 | E174: 261 | F174: 0.5823754789 | G174: 0.6441532777 | H174: 0.5205976801
A175: HOME STATE EAST | B175: Childhood Immunizations | C175: DTaP | D175: 263 | E175: 411 | F175: 0.6399026764 | G175: 0.6875518845 | H175: 0.5922534683
A176: HOME STATE EAST | B176: Childhood Immunizations | C176: IPV | D176: 338 | E176: 411 | F176: 0.8223844282 | G176: 0.8605697126 | H176: 0.7841991439
A177: HOME STATE EAST | B177: Childhood Immunizations | C177: MMR | D177: 336 | E177: 411 | F177: 0.8175182482 | G177: 0.8560955041 | H177: 0.7789409923
A178: HOME STATE EAST | B178: Childhood Immunizations | C178: Hib | D178: 338 | E178: 411 | F178: 0.8223844282 | G178: 0.8605697126 | H178: 0.7841991439
A179: HOME STATE EAST | B179: Childhood Immunizations | C179: Hepatitis B | D179: 348 | E179: 411 | F179: 0.8467153285 | G179: 0.8827796247 | H179: 0.8106510322
A180: HOME STATE EAST | B180: Childhood Immunizations | C180: VZV | D180: 322 | E180: 411 | F180: 0.7834549878 | G180: 0.8245132273 | H180: 0.7423967484
A181: HOME STATE EAST | B181: Childhood Immunizations | C181: Pneumococcal Conjugate | D181: 277 | E181: 411 | F181: 0.6739659367 | G181: 0.7205251575 | H181: 0.627406716
A182: HOME STATE EAST | B182: Childhood Immunizations | C182: Hepatitis A | D182: 298 | E182: 411 | F182: 0.7250608273 | G182: 0.7694652849 | H182: 0.6806563696
A183: HOME STATE EAST | B183: Childhood Immunizations | C183: Rotavirus | D183: 291 | E183: 411 | F183: 0.7080291971 | G183: 0.7532254133 | H183: 0.6628329808
A184: HOME STATE EAST | B184: Childhood Immunizations | C184: Influenza | D184: 163 | E184: 411 | F184: 0.396593674 | G184: 0.4451291041 | H184: 0.3480582439
A185: HOME STATE EAST | B185: Childhood Immunizations | C185: Combo 2 | D185: 232 | E185: 411 | F185: 0.5644768856 | G185: 0.6136541147 | H185: 0.5152996566
A186: HOME STATE EAST | B186: Childhood Immunizations | C186: Combo 3 | D186: 223 | E186: 411 | F186: 0.5425790754 | G186: 0.5919844321 | H186: 0.4931737187
A187: HOME STATE EAST | B187: Childhood Immunizations | C187: Combo 4 | D187: 207 | E187: 411 | F187: 0.503649635 | G187: 0.5532293899 | H187: 0.4540698802
A188: HOME STATE EAST | B188: Childhood Immunizations | C188: Combo 5 | D188: 198 | E188: 411 | F188: 0.4817518248 | G188: 0.531300647 | H188: 0.4322030026
A189: HOME STATE EAST | B189: Childhood Immunizations | C189: Combo 6 | D189: 122 | E189: 411 | F189: 0.296836983 | G189: 0.3422455321 | H189: 0.2514284338
A190: HOME STATE EAST | B190: Childhood Immunizations | C190: Combo 7 | D190: 187 | E190: 411 | F190: 0.4549878345 | G190: 0.504372497 | H190: 0.4056031721
A191: HOME STATE EAST | B191: Childhood Immunizations | C191: Combo 8 | D191: 115 | E191: 411 | F191: 0.2798053528 | G191: 0.3244438792 | H191: 0.2351668264
A192: HOME STATE EAST | B192: Childhood Immunizations | C192: Combo 9 | D192: 111 | E192: 411 | F192: 0.2700729927 | G192: 0.3142369476 | H192: 0.2259090378
A193: HOME STATE EAST | B193: Childhood Immunizations | C193: Combo 10 | D193: 105 | E193: 411 | F193: 0.2554744526 | G193: 0.2988771797 | H193: 0.2120717254
A194: HOME STATE EAST | B194: Beta Blocker Treatment After Heart Attack | C194: Beta Blocker Treatment After Heart Attack | D194: 5 | E194: 6 | F194: =IFERROR(D194/E194,"N/A") -> 0.8333333333 | G194: 1 | H194: 0.4516433513
A195: HOME STATE EAST | B195: Controlling Blood Pressure | C195: Controlling Blood Pressure | D195: 146 | E195: 337 | F195: 0.4332344214 | G195: 0.4876510211 | H195: 0.3788178216
A196: HOME STATE EAST | B196: Antidepression Medication Management | C196: Effective Acute Phase Treatment | D196: 203 | E196: 404 | F196: =IFERROR(D196/E196,"N/A") -> 0.5024752475 | G196: 0.5524939718 | H196: 0.4524565233
A197: HOME STATE EAST | B197: Antidepression Medication Management | C197: Effective Continuation Phase Treatment | D197: 140 | E197: 404 | F197: 0.3465346535 | G197: 0.3941993741 | H197: 0.2988699329
A198: HOME STATE EAST | B198: Chlamydia Screening in Women | C198: 16-20 years old | D198: 569 | E198: 1089 | F198: 0.5224977043 | G198: 0.5526388697 | H198: 0.4923565389
A199: HOME STATE EAST | B199: Chlamydia Screening in Women | C199: 21-24 years old | D199: 322 | E199: 535 | F199: 0.6018691589 | G199: 0.6443053209 | H199: 0.5594329968
A200: HOME STATE EAST | B200: Chlamydia Screening in Women | C200: Combined Rate | D200: 891 | E200: 1624 | F200: 0.5486453202 | G200: 0.5731684764 | H200: 0.524122164
... 517 more rows
